{"text_format":"2","workbook":"xlsx","n_sheets":1,"sheets":["Календарь"],"not_rendered":{"charts":0,"images":0,"macros":0,"external_links":0,"defined_names":43,"comments":0,"pivot_tables":0},"unopened":[],"bounds":{"document_bytes":16777216,"sheet_cells":100000,"run_cost":"one","rows_first":2000,"rows_last":500,"rows_between":2000,"halvings":0,"cell_chars":16384,"cell_head_chars":4096},"cells_cut":0,"cells_raw":0,"read":"whole","date_system":"1900"}

{"sheet":"Календарь","index":0,"n_rows":167,"n_cols":8,"rows_kept":167,"cut":false,"hidden":false,"merged":[[167,3,167,7],[97,3,97,7],[166,3,166,7],[12,3,12,7],[82,3,82,7],[55,3,55,7],[40,3,40,7],[41,3,41,7],[54,3,54,7],[27,3,27,7],[96,3,96,7],[152,3,152,7],[153,3,153,7],[110,3,110,7],[139,3,139,7],[125,3,125,7],[124,3,124,7],[138,3,138,7],[111,3,111,7],[83,3,83,7],[13,3,13,7],[68,3,68,7],[26,3,26,7],[69,3,69,7]]}
[null,{"$f":"YEAR(TODAY())","v":2018.0},"Декабрь"]
[null,"ПОНЕДЕЛЬНИК",{"$f":"UPPER(TEXT(C3,\"ДДДД\"))","v":{"$error":"#NUM!"}},{"$error":"#NUM!"},{"$error":"#NUM!"},{"$error":"#NUM!"},{"$error":"#NUM!"},{"$error":"#NUM!"}]
[null,{"$f":"Дни+1+DATE(Календарь1Год,Календарь1МесяцПараметр,1)-WEEKDAY(DATE(Календарь1Год,Календарь1МесяцПараметр,1),ПараметрДняНедели)","v":{"$error":"#NUM!"}},{"$error":"#NUM!"},{"$error":"#NUM!"},{"$error":"#NUM!"},{"$error":"#NUM!"},{"$error":"#NUM!"},{"$error":"#NUM!"}]
[]
[null,{"$f":"Дни+8+DATE(Календарь1Год,Календарь1МесяцПараметр,1)-WEEKDAY(DATE(Календарь1Год,Календарь1МесяцПараметр,1),ПараметрДняНедели)","v":{"$error":"#NUM!"}},{"$error":"#NUM!"},{"$error":"#NUM!"},{"$error":"#NUM!"},{"$error":"#NUM!"},{"$error":"#NUM!"},{"$error":"#NUM!"}]
[null,"История праздника \"Новый год\"","Традиции празднования Нового года в разных странах (желательно взять страны с абсолютно разным менталитетом и привычками)","Примеры новогодних подарков","Свое мнение насчет Нового года. Написать, почему вы любите/не любите праздник, как праздновали в детстве и сейчас","Факты о наступающем годе: какой животное-символ, в каких цветах лучше его встречать и почему. Можно также рассказать, в год какого животного родились вы.","Символы рождества в разных странах","Почему католическое и православное рождество празднуется в разные дни"]
[null,{"$f":"Дни+15+DATE(Календарь1Год,Календарь1МесяцПараметр,1)-WEEKDAY(DATE(Календарь1Год,Календарь1МесяцПараметр,1),ПараметрДняНедели)","v":{"$error":"#NUM!"}},{"$error":"#NUM!"},{"$error":"#NUM!"},{"$error":"#NUM!"},{"$error":"#NUM!"},{"$error":"#NUM!"},{"$error":"#NUM!"}]
[null,"В каких странах отмечают Рождество и особенности празднования","Как ваша семья проводит зимние каникулы","Идеи украшения квартиры/офиса и небольшой рассказ о том, как это делаете вы","Факты о себе, из которых несколько-неправда. Предложите своим подписчикам угадать, какие факты правдивые, а какие нетю","История знакомства с мужем","Распределение обязанностей в вашей семье","Что для вас важно в семейных отношениях"]
[null,{"$f":"Дни+22+DATE(Календарь1Год,Календарь1МесяцПараметр,1)-WEEKDAY(DATE(Календарь1Год,Календарь1МесяцПараметр,1),ПараметрДняНедели)","v":{"$error":"#NUM!"}},{"$error":"#NUM!"},{"$error":"#NUM!"},{"$error":"#NUM!"},{"$error":"#NUM!"},{"$error":"#NUM!"},{"$error":"#NUM!"}]
[]
[null,{"$f":"Дни+29+DATE(Календарь1Год,Календарь1МесяцПараметр,1)-WEEKDAY(DATE(Календарь1Год,Календарь1МесяцПараметр,1),ПараметрДняНедели)","v":{"$error":"#NUM!"}},{"$error":"#NUM!"},{"$error":"#NUM!"},{"$error":"#NUM!"},{"$error":"#NUM!"},{"$error":"#NUM!"},{"$error":"#NUM!"}]
[]
[null,{"$f":"Дни+36+DATE(Календарь1Год,Календарь1МесяцПараметр,1)-WEEKDAY(DATE(Календарь1Год,Календарь1МесяцПараметр,1),ПараметрДняНедели)","v":{"$error":"#NUM!"}},{"$error":"#NUM!"},"Заметки:"]
[]
[null,{"$f":"YEAR(DATE(Календарь1Год,Календарь1МесяцПараметр+1,1))","v":2019.0},{"$f":"TEXT(DATE(Календарь1Год,Календарь1МесяцПараметр+1,1),\"ММММ\")","v":"Январь"}]
[null,{"$f":"UPPER(TEXT(B17,\"ДДДД\"))","v":{"$error":"#NUM!"}},{"$error":"#NUM!"},{"$error":"#NUM!"},{"$error":"#NUM!"},{"$error":"#NUM!"},{"$error":"#NUM!"},{"$error":"#NUM!"}]
[null,{"$f":"Дни+1+DATE(Календарь2Год,Календарь2МесяцПараметр,1)-WEEKDAY(DATE(Календарь2Год,Календарь2МесяцПараметр,1),ПараметрДняНедели)","v":{"$error":"#NUM!"}},{"$error":"#NUM!"},{"$error":"#NUM!"},{"$error":"#NUM!"},{"$error":"#NUM!"},{"$error":"#NUM!"},{"$error":"#NUM!"}]
[]
[null,{"$f":"Дни+8+DATE(Календарь2Год,Календарь2МесяцПараметр,1)-WEEKDAY(DATE(Календарь2Год,Календарь2МесяцПараметр,1),ПараметрДняНедели)","v":{"$error":"#NUM!"}},{"$error":"#NUM!"},{"$error":"#NUM!"},{"$error":"#NUM!"},{"$error":"#NUM!"},{"$error":"#NUM!"},{"$error":"#NUM!"}]
[]
[null,{"$f":"Дни+15+DATE(Календарь2Год,Календарь2МесяцПараметр,1)-WEEKDAY(DATE(Календарь2Год,Календарь2МесяцПараметр,1),ПараметрДняНедели)","v":{"$error":"#NUM!"}},{"$error":"#NUM!"},{"$error":"#NUM!"},{"$error":"#NUM!"},{"$error":"#NUM!"},{"$error":"#NUM!"},{"$error":"#NUM!"}]
[]
[null,{"$f":"Дни+22+DATE(Календарь2Год,Календарь2МесяцПараметр,1)-WEEKDAY(DATE(Календарь2Год,Календарь2МесяцПараметр,1),ПараметрДняНедели)","v":{"$error":"#NUM!"}},{"$error":"#NUM!"},{"$error":"#NUM!"},{"$error":"#NUM!"},{"$error":"#NUM!"},{"$error":"#NUM!"},{"$error":"#NUM!"}]
[]
[null,{"$f":"Дни+29+DATE(Календарь2Год,Календарь2МесяцПараметр,1)-WEEKDAY(DATE(Календарь2Год,Календарь2МесяцПараметр,1),ПараметрДняНедели)","v":{"$error":"#NUM!"}},{"$error":"#NUM!"},{"$error":"#NUM!"},{"$error":"#NUM!"},{"$error":"#NUM!"},{"$error":"#NUM!"},{"$error":"#NUM!"}]
[]
[null,{"$f":"Дни+36+DATE(Календарь2Год,Календарь2МесяцПараметр,1)-WEEKDAY(DATE(Календарь2Год,Календарь2МесяцПараметр,1),ПараметрДняНедели)","v":{"$error":"#NUM!"}},{"$error":"#NUM!"},"Заметки:"]
[]
[null,{"$f":"YEAR(DATE(Календарь2Год,Календарь2МесяцПараметр+1,1))","v":2019.0},{"$f":"TEXT(DATE(Календарь2Год,Календарь2МесяцПараметр+1,1),\"ММММ\")","v":"Февраль"}]
[null,{"$f":"UPPER(TEXT(B31,\"ДДДД\"))","v":{"$error":"#NUM!"}},{"$error":"#NUM!"},{"$error":"#NUM!"},{"$error":"#NUM!"},{"$error":"#NUM!"},{"$error":"#NUM!"},{"$error":"#NUM!"}]
[null,{"$f":"Дни+1+DATE(Календарь3Год,Календарь3МесяцПараметр,1)-WEEKDAY(DATE(Календарь3Год,Календарь3МесяцПараметр,1),ПараметрДняНедели)","v":{"$error":"#NUM!"}},{"$error":"#NUM!"},{"$error":"#NUM!"},{"$error":"#NUM!"},{"$error":"#NUM!"},{"$error":"#NUM!"},{"$error":"#NUM!"}]
[]
[null,{"$f":"Дни+8+DATE(Календарь3Год,Календарь3МесяцПараметр,1)-WEEKDAY(DATE(Календарь3Год,Календарь3МесяцПараметр,1),ПараметрДняНедели)","v":{"$error":"#NUM!"}},{"$error":"#NUM!"},{"$error":"#NUM!"},{"$error":"#NUM!"},{"$error":"#NUM!"},{"$error":"#NUM!"},{"$error":"#NUM!"}]
[]
[null,{"$f":"Дни+15+DATE(Календарь3Год,Календарь3МесяцПараметр,1)-WEEKDAY(DATE(Календарь3Год,Календарь3МесяцПараметр,1),ПараметрДняНедели)","v":{"$error":"#NUM!"}},{"$error":"#NUM!"},{"$error":"#NUM!"},{"$error":"#NUM!"},{"$error":"#NUM!"},{"$error":"#NUM!"},{"$error":"#NUM!"}]
[]
[null,{"$f":"Дни+22+DATE(Календарь3Год,Календарь3МесяцПараметр,1)-WEEKDAY(DATE(Календарь3Год,Календарь3МесяцПараметр,1),ПараметрДняНедели)","v":{"$error":"#NUM!"}},{"$error":"#NUM!"},{"$error":"#NUM!"},{"$error":"#NUM!"},{"$error":"#NUM!"},{"$error":"#NUM!"},{"$error":"#NUM!"}]
[]
[null,{"$f":"Дни+29+DATE(Календарь3Год,Календарь3МесяцПараметр,1)-WEEKDAY(DATE(Календарь3Год,Календарь3МесяцПараметр,1),ПараметрДняНедели)","v":{"$error":"#NUM!"}},{"$error":"#NUM!"},{"$error":"#NUM!"},{"$error":"#NUM!"},{"$error":"#NUM!"},{"$error":"#NUM!"},{"$error":"#NUM!"}]
[]
[null,{"$f":"Дни+36+DATE(Календарь3Год,Календарь3МесяцПараметр,1)-WEEKDAY(DATE(Календарь3Год,Календарь3МесяцПараметр,1),ПараметрДняНедели)","v":{"$error":"#NUM!"}},{"$error":"#NUM!"},"Заметки:"]
[]
[null,{"$f":"YEAR(DATE(Календарь3Год,Календарь3МесяцПараметр+1,1))","v":2019.0},{"$f":"TEXT(DATE(Календарь3Год,Календарь3МесяцПараметр+1,1),\"ММММ\")","v":"Март"}]
[null,{"$f":"UPPER(TEXT(B45,\"ДДДД\"))","v":{"$error":"#NUM!"}},{"$error":"#NUM!"},{"$error":"#NUM!"},{"$error":"#NUM!"},{"$error":"#NUM!"},{"$error":"#NUM!"},{"$error":"#NUM!"}]
[null,{"$f":"Дни+1+DATE(Календарь4Год,Календарь4МесяцПараметр,1)-WEEKDAY(DATE(Календарь4Год,Календарь4МесяцПараметр,1),ПараметрДняНедели)","v":{"$error":"#NUM!"}},{"$error":"#NUM!"},{"$error":"#NUM!"},{"$error":"#NUM!"},{"$error":"#NUM!"},{"$error":"#NUM!"},{"$error":"#NUM!"}]
[]
[null,{"$f":"Дни+8+DATE(Календарь4Год,Календарь4МесяцПараметр,1)-WEEKDAY(DATE(Календарь4Год,Календарь4МесяцПараметр,1),ПараметрДняНедели)","v":{"$error":"#NUM!"}},{"$error":"#NUM!"},{"$error":"#NUM!"},{"$error":"#NUM!"},{"$error":"#NUM!"},{"$error":"#NUM!"},{"$error":"#NUM!"}]
[]
[null,{"$f":"Дни+15+DATE(Календарь4Год,Календарь4МесяцПараметр,1)-WEEKDAY(DATE(Календарь4Год,Календарь4МесяцПараметр,1),ПараметрДняНедели)","v":{"$error":"#NUM!"}},{"$error":"#NUM!"},{"$error":"#NUM!"},{"$error":"#NUM!"},{"$error":"#NUM!"},{"$error":"#NUM!"},{"$error":"#NUM!"}]
[]
[null,{"$f":"Дни+22+DATE(Календарь4Год,Календарь4МесяцПараметр,1)-WEEKDAY(DATE(Календарь4Год,Календарь4МесяцПараметр,1),ПараметрДняНедели)","v":{"$error":"#NUM!"}},{"$error":"#NUM!"},{"$error":"#NUM!"},{"$error":"#NUM!"},{"$error":"#NUM!"},{"$error":"#NUM!"},{"$error":"#NUM!"}]
[]
[null,{"$f":"Дни+29+DATE(Календарь4Год,Календарь4МесяцПараметр,1)-WEEKDAY(DATE(Календарь4Год,Календарь4МесяцПараметр,1),ПараметрДняНедели)","v":{"$error":"#NUM!"}},{"$error":"#NUM!"},{"$error":"#NUM!"},{"$error":"#NUM!"},{"$error":"#NUM!"},{"$error":"#NUM!"},{"$error":"#NUM!"}]
[]
[null,{"$f":"Дни+36+DATE(Календарь4Год,Календарь4МесяцПараметр,1)-WEEKDAY(DATE(Календарь4Год,Календарь4МесяцПараметр,1),ПараметрДняНедели)","v":{"$error":"#NUM!"}},{"$error":"#NUM!"},"Заметки:"]
[]
[null,{"$f":"YEAR(DATE(Календарь4Год,Календарь4МесяцПараметр+1,1))","v":2019.0},{"$f":"TEXT(DATE(Календарь4Год,Календарь4МесяцПараметр+1,1),\"ММММ\")","v":"Апрель"}]
[null,{"$f":"UPPER(TEXT(B59,\"ДДДД\"))","v":{"$error":"#NUM!"}},{"$error":"#NUM!"},{"$error":"#NUM!"},{"$error":"#NUM!"},{"$error":"#NUM!"},{"$error":"#NUM!"},{"$error":"#NUM!"}]
[null,{"$f":"Дни+1+DATE(Календарь5Год,Календарь5МесяцПараметр,1)-WEEKDAY(DATE(Календарь5Год,Календарь5МесяцПараметр,1),ПараметрДняНедели)","v":{"$error":"#NUM!"}},{"$error":"#NUM!"},{"$error":"#NUM!"},{"$error":"#NUM!"},{"$error":"#NUM!"},{"$error":"#NUM!"},{"$error":"#NUM!"}]
[]
[null,{"$f":"Дни+8+DATE(Календарь5Год,Календарь5МесяцПараметр,1)-WEEKDAY(DATE(Календарь5Год,Календарь5МесяцПараметр,1),ПараметрДняНедели)","v":{"$error":"#NUM!"}},{"$error":"#NUM!"},{"$error":"#NUM!"},{"$error":"#NUM!"},{"$error":"#NUM!"},{"$error":"#NUM!"},{"$error":"#NUM!"}]
[]
[null,{"$f":"Дни+15+DATE(Календарь5Год,Календарь5МесяцПараметр,1)-WEEKDAY(DATE(Календарь5Год,Календарь5МесяцПараметр,1),ПараметрДняНедели)","v":{"$error":"#NUM!"}},{"$error":"#NUM!"},{"$error":"#NUM!"},{"$error":"#NUM!"},{"$error":"#NUM!"},{"$error":"#NUM!"},{"$error":"#NUM!"}]
[]
[null,{"$f":"Дни+22+DATE(Календарь5Год,Календарь5МесяцПараметр,1)-WEEKDAY(DATE(Календарь5Год,Календарь5МесяцПараметр,1),ПараметрДняНедели)","v":{"$error":"#NUM!"}},{"$error":"#NUM!"},{"$error":"#NUM!"},{"$error":"#NUM!"},{"$error":"#NUM!"},{"$error":"#NUM!"},{"$error":"#NUM!"}]
[]
[null,{"$f":"Дни+29+DATE(Календарь5Год,Календарь5МесяцПараметр,1)-WEEKDAY(DATE(Календарь5Год,Календарь5МесяцПараметр,1),ПараметрДняНедели)","v":{"$error":"#NUM!"}},{"$error":"#NUM!"},{"$error":"#NUM!"},{"$error":"#NUM!"},{"$error":"#NUM!"},{"$error":"#NUM!"},{"$error":"#NUM!"}]
[]
[null,{"$f":"Дни+36+DATE(Календарь5Год,Календарь5МесяцПараметр,1)-WEEKDAY(DATE(Календарь5Год,Календарь5МесяцПараметр,1),ПараметрДняНедели)","v":{"$error":"#NUM!"}},{"$error":"#NUM!"},"Заметки:"]
[]
[null,{"$f":"YEAR(DATE(Календарь5Год,Календарь5МесяцПараметр+1,1))","v":2019.0},{"$f":"TEXT(DATE(Календарь5Год,Календарь5МесяцПараметр+1,1),\"ММММ\")","v":"Май"}]
[null,{"$f":"UPPER(TEXT(B73,\"ДДДД\"))","v":{"$error":"#NUM!"}},{"$error":"#NUM!"},{"$error":"#NUM!"},{"$error":"#NUM!"},{"$error":"#NUM!"},{"$error":"#NUM!"},{"$error":"#NUM!"}]
[null,{"$f":"Дни+1+DATE(Календарь6Год,Календарь6МесяцПараметр,1)-WEEKDAY(DATE(Календарь6Год,Календарь6МесяцПараметр,1),ПараметрДняНедели)","v":{"$error":"#NUM!"}},{"$error":"#NUM!"},{"$error":"#NUM!"},{"$error":"#NUM!"},{"$error":"#NUM!"},{"$error":"#NUM!"},{"$error":"#NUM!"}]
[]
[null,{"$f":"Дни+8+DATE(Календарь6Год,Календарь6МесяцПараметр,1)-WEEKDAY(DATE(Календарь6Год,Календарь6МесяцПараметр,1),ПараметрДняНедели)","v":{"$error":"#NUM!"}},{"$error":"#NUM!"},{"$error":"#NUM!"},{"$error":"#NUM!"},{"$error":"#NUM!"},{"$error":"#NUM!"},{"$error":"#NUM!"}]
[]
[null,{"$f":"Дни+15+DATE(Календарь6Год,Календарь6МесяцПараметр,1)-WEEKDAY(DATE(Календарь6Год,Календарь6МесяцПараметр,1),ПараметрДняНедели)","v":{"$error":"#NUM!"}},{"$error":"#NUM!"},{"$error":"#NUM!"},{"$error":"#NUM!"},{"$error":"#NUM!"},{"$error":"#NUM!"},{"$error":"#NUM!"}]
[]
[null,{"$f":"Дни+22+DATE(Календарь6Год,Календарь6МесяцПараметр,1)-WEEKDAY(DATE(Календарь6Год,Календарь6МесяцПараметр,1),ПараметрДняНедели)","v":{"$error":"#NUM!"}},{"$error":"#NUM!"},{"$error":"#NUM!"},{"$error":"#NUM!"},{"$error":"#NUM!"},{"$error":"#NUM!"},{"$error":"#NUM!"}]
[]
[null,{"$f":"Дни+29+DATE(Календарь6Год,Календарь6МесяцПараметр,1)-WEEKDAY(DATE(Календарь6Год,Календарь6МесяцПараметр,1),ПараметрДняНедели)","v":{"$error":"#NUM!"}},{"$error":"#NUM!"},{"$error":"#NUM!"},{"$error":"#NUM!"},{"$error":"#NUM!"},{"$error":"#NUM!"},{"$error":"#NUM!"}]
[]
[null,{"$f":"Дни+36+DATE(Календарь6Год,Календарь6МесяцПараметр,1)-WEEKDAY(DATE(Календарь6Год,Календарь6МесяцПараметр,1),ПараметрДняНедели)","v":{"$error":"#NUM!"}},{"$error":"#NUM!"},"Заметки:"]
[]
[null,{"$f":"YEAR(DATE(Календарь6Год,Календарь6МесяцПараметр+1,1))","v":2019.0},{"$f":"TEXT(DATE(Календарь6Год,Календарь6МесяцПараметр+1,1),\"ММММ\")","v":"Июнь"}]
[null,{"$f":"UPPER(TEXT(B87,\"ДДДД\"))","v":{"$error":"#NUM!"}},{"$error":"#NUM!"},{"$error":"#NUM!"},{"$error":"#NUM!"},{"$error":"#NUM!"},{"$error":"#NUM!"},{"$error":"#NUM!"}]
[null,{"$f":"Дни+1+DATE(Календарь7Год,Календарь7МесяцПараметр,1)-WEEKDAY(DATE(Календарь7Год,Календарь7МесяцПараметр,1),ПараметрДняНедели)","v":{"$error":"#NUM!"}},{"$error":"#NUM!"},{"$error":"#NUM!"},{"$error":"#NUM!"},{"$error":"#NUM!"},{"$error":"#NUM!"},{"$error":"#NUM!"}]
[]
[null,{"$f":"Дни+8+DATE(Календарь7Год,Календарь7МесяцПараметр,1)-WEEKDAY(DATE(Календарь7Год,Календарь7МесяцПараметр,1),ПараметрДняНедели)","v":{"$error":"#NUM!"}},{"$error":"#NUM!"},{"$error":"#NUM!"},{"$error":"#NUM!"},{"$error":"#NUM!"},{"$error":"#NUM!"},{"$error":"#NUM!"}]
[]
[null,{"$f":"Дни+15+DATE(Календарь7Год,Календарь7МесяцПараметр,1)-WEEKDAY(DATE(Календарь7Год,Календарь7МесяцПараметр,1),ПараметрДняНедели)","v":{"$error":"#NUM!"}},{"$error":"#NUM!"},{"$error":"#NUM!"},{"$error":"#NUM!"},{"$error":"#NUM!"},{"$error":"#NUM!"},{"$error":"#NUM!"}]
[]
[null,{"$f":"Дни+22+DATE(Календарь7Год,Календарь7МесяцПараметр,1)-WEEKDAY(DATE(Календарь7Год,Календарь7МесяцПараметр,1),ПараметрДняНедели)","v":{"$error":"#NUM!"}},{"$error":"#NUM!"},{"$error":"#NUM!"},{"$error":"#NUM!"},{"$error":"#NUM!"},{"$error":"#NUM!"},{"$error":"#NUM!"}]
[]
[null,{"$f":"Дни+29+DATE(Календарь7Год,Календарь7МесяцПараметр,1)-WEEKDAY(DATE(Календарь7Год,Календарь7МесяцПараметр,1),ПараметрДняНедели)","v":{"$error":"#NUM!"}},{"$error":"#NUM!"},{"$error":"#NUM!"},{"$error":"#NUM!"},{"$error":"#NUM!"},{"$error":"#NUM!"},{"$error":"#NUM!"}]
[]
[null,{"$f":"Дни+36+DATE(Календарь7Год,Календарь7МесяцПараметр,1)-WEEKDAY(DATE(Календарь7Год,Календарь7МесяцПараметр,1),ПараметрДняНедели)","v":{"$error":"#NUM!"}},{"$error":"#NUM!"},"Заметки:"]
[]
[null,{"$f":"YEAR(DATE(Календарь7Год,Календарь7МесяцПараметр+1,1))","v":2019.0},{"$f":"TEXT(DATE(Календарь7Год,Календарь7МесяцПараметр+1,1),\"ММММ\")","v":"Июль"}]
[null,{"$f":"UPPER(TEXT(B101,\"ДДДД\"))","v":{"$error":"#NUM!"}},{"$error":"#NUM!"},{"$error":"#NUM!"},{"$error":"#NUM!"},{"$error":"#NUM!"},{"$error":"#NUM!"},{"$error":"#NUM!"}]
[null,{"$f":"Дни+1+DATE(Календарь8Год,Календарь8МесяцПараметр,1)-WEEKDAY(DATE(Календарь8Год,Календарь8МесяцПараметр,1),ПараметрДняНедели)","v":{"$error":"#NUM!"}},{"$error":"#NUM!"},{"$error":"#NUM!"},{"$error":"#NUM!"},{"$error":"#NUM!"},{"$error":"#NUM!"},{"$error":"#NUM!"}]
[]
[null,{"$f":"Дни+8+DATE(Календарь8Год,Календарь8МесяцПараметр,1)-WEEKDAY(DATE(Календарь8Год,Календарь8МесяцПараметр,1),ПараметрДняНедели)","v":{"$error":"#NUM!"}},{"$error":"#NUM!"},{"$error":"#NUM!"},{"$error":"#NUM!"},{"$error":"#NUM!"},{"$error":"#NUM!"},{"$error":"#NUM!"}]
[]
[null,{"$f":"Дни+15+DATE(Календарь8Год,Календарь8МесяцПараметр,1)-WEEKDAY(DATE(Календарь8Год,Календарь8МесяцПараметр,1),ПараметрДняНедели)","v":{"$error":"#NUM!"}},{"$error":"#NUM!"},{"$error":"#NUM!"},{"$error":"#NUM!"},{"$error":"#NUM!"},{"$error":"#NUM!"},{"$error":"#NUM!"}]
[]
[null,{"$f":"Дни+22+DATE(Календарь8Год,Календарь8МесяцПараметр,1)-WEEKDAY(DATE(Календарь8Год,Календарь8МесяцПараметр,1),ПараметрДняНедели)","v":{"$error":"#NUM!"}},{"$error":"#NUM!"},{"$error":"#NUM!"},{"$error":"#NUM!"},{"$error":"#NUM!"},{"$error":"#NUM!"},{"$error":"#NUM!"}]
[]
[null,{"$f":"Дни+29+DATE(Календарь8Год,Календарь8МесяцПараметр,1)-WEEKDAY(DATE(Календарь8Год,Календарь8МесяцПараметр,1),ПараметрДняНедели)","v":{"$error":"#NUM!"}},{"$error":"#NUM!"},{"$error":"#NUM!"},{"$error":"#NUM!"},{"$error":"#NUM!"},{"$error":"#NUM!"},{"$error":"#NUM!"}]
[]
[null,{"$f":"Дни+36+DATE(Календарь8Год,Календарь8МесяцПараметр,1)-WEEKDAY(DATE(Календарь8Год,Календарь8МесяцПараметр,1),ПараметрДняНедели)","v":{"$error":"#NUM!"}},{"$error":"#NUM!"},"Заметки:"]
[]
[null,{"$f":"YEAR(DATE(Календарь8Год,Календарь8МесяцПараметр+1,1))","v":2019.0},{"$f":"TEXT(DATE(Календарь8Год,Календарь8МесяцПараметр+1,1),\"ММММ\")","v":"Август"}]
[null,{"$f":"UPPER(TEXT(B115,\"ДДДД\"))","v":{"$error":"#NUM!"}},{"$error":"#NUM!"},{"$error":"#NUM!"},{"$error":"#NUM!"},{"$error":"#NUM!"},{"$error":"#NUM!"},{"$error":"#NUM!"}]
[null,{"$f":"Дни+1+DATE(Календарь9Год,Календарь9МесяцПараметр,1)-WEEKDAY(DATE(Календарь9Год,Календарь9МесяцПараметр,1),ПараметрДняНедели)","v":{"$error":"#NUM!"}},{"$error":"#NUM!"},{"$error":"#NUM!"},{"$error":"#NUM!"},{"$error":"#NUM!"},{"$error":"#NUM!"},{"$error":"#NUM!"}]
[]
[null,{"$f":"Дни+8+DATE(Календарь9Год,Календарь9МесяцПараметр,1)-WEEKDAY(DATE(Календарь9Год,Календарь9МесяцПараметр,1),ПараметрДняНедели)","v":{"$error":"#NUM!"}},{"$error":"#NUM!"},{"$error":"#NUM!"},{"$error":"#NUM!"},{"$error":"#NUM!"},{"$error":"#NUM!"},{"$error":"#NUM!"}]
[]
[null,{"$f":"Дни+15+DATE(Календарь9Год,Календарь9МесяцПараметр,1)-WEEKDAY(DATE(Календарь9Год,Календарь9МесяцПараметр,1),ПараметрДняНедели)","v":{"$error":"#NUM!"}},{"$error":"#NUM!"},{"$error":"#NUM!"},{"$error":"#NUM!"},{"$error":"#NUM!"},{"$error":"#NUM!"},{"$error":"#NUM!"}]
[]
[null,{"$f":"Дни+22+DATE(Календарь9Год,Календарь9МесяцПараметр,1)-WEEKDAY(DATE(Календарь9Год,Календарь9МесяцПараметр,1),ПараметрДняНедели)","v":{"$error":"#NUM!"}},{"$error":"#NUM!"},{"$error":"#NUM!"},{"$error":"#NUM!"},{"$error":"#NUM!"},{"$error":"#NUM!"},{"$error":"#NUM!"}]
[]
[null,{"$f":"Дни+29+DATE(Календарь9Год,Календарь9МесяцПараметр,1)-WEEKDAY(DATE(Календарь9Год,Календарь9МесяцПараметр,1),ПараметрДняНедели)","v":{"$error":"#NUM!"}},{"$error":"#NUM!"},{"$error":"#NUM!"},{"$error":"#NUM!"},{"$error":"#NUM!"},{"$error":"#NUM!"},{"$error":"#NUM!"}]
[]
[null,{"$f":"Дни+36+DATE(Календарь9Год,Календарь9МесяцПараметр,1)-WEEKDAY(DATE(Календарь9Год,Календарь9МесяцПараметр,1),ПараметрДняНедели)","v":{"$error":"#NUM!"}},{"$error":"#NUM!"},"Заметки:"]
[]
[null,{"$f":"YEAR(DATE(Календарь9Год,Календарь9МесяцПараметр+1,1))","v":2019.0},{"$f":"TEXT(DATE(Календарь9Год,Календарь9МесяцПараметр+1,1),\"ММММ\")","v":"Сентябрь"}]
[null,{"$f":"UPPER(TEXT(B129,\"ДДДД\"))","v":{"$error":"#NUM!"}},{"$error":"#NUM!"},{"$error":"#NUM!"},{"$error":"#NUM!"},{"$error":"#NUM!"},{"$error":"#NUM!"},{"$error":"#NUM!"}]
[null,{"$f":"Дни+1+DATE(Календарь10Год,Календарь10МесяцПараметр,1)-WEEKDAY(DATE(Календарь10Год,Календарь10МесяцПараметр,1),ПараметрДняНедели)","v":{"$error":"#NUM!"}},{"$error":"#NUM!"},{"$error":"#NUM!"},{"$error":"#NUM!"},{"$error":"#NUM!"},{"$error":"#NUM!"},{"$error":"#NUM!"}]
[]
[null,{"$f":"Дни+8+DATE(Календарь10Год,Календарь10МесяцПараметр,1)-WEEKDAY(DATE(Календарь10Год,Календарь10МесяцПараметр,1),ПараметрДняНедели)","v":{"$error":"#NUM!"}},{"$error":"#NUM!"},{"$error":"#NUM!"},{"$error":"#NUM!"},{"$error":"#NUM!"},{"$error":"#NUM!"},{"$error":"#NUM!"}]
[]
[null,{"$f":"Дни+15+DATE(Календарь10Год,Календарь10МесяцПараметр,1)-WEEKDAY(DATE(Календарь10Год,Календарь10МесяцПараметр,1),ПараметрДняНедели)","v":{"$error":"#NUM!"}},{"$error":"#NUM!"},{"$error":"#NUM!"},{"$error":"#NUM!"},{"$error":"#NUM!"},{"$error":"#NUM!"},{"$error":"#NUM!"}]
[]
[null,{"$f":"Дни+22+DATE(Календарь10Год,Календарь10МесяцПараметр,1)-WEEKDAY(DATE(Календарь10Год,Календарь10МесяцПараметр,1),ПараметрДняНедели)","v":{"$error":"#NUM!"}},{"$error":"#NUM!"},{"$error":"#NUM!"},{"$error":"#NUM!"},{"$error":"#NUM!"},{"$error":"#NUM!"},{"$error":"#NUM!"}]
[]
[null,{"$f":"Дни+29+DATE(Календарь10Год,Календарь10МесяцПараметр,1)-WEEKDAY(DATE(Календарь10Год,Календарь10МесяцПараметр,1),ПараметрДняНедели)","v":{"$error":"#NUM!"}},{"$error":"#NUM!"},{"$error":"#NUM!"},{"$error":"#NUM!"},{"$error":"#NUM!"},{"$error":"#NUM!"},{"$error":"#NUM!"}]
[]
[null,{"$f":"Дни+36+DATE(Календарь10Год,Календарь10МесяцПараметр,1)-WEEKDAY(DATE(Календарь10Год,Календарь10МесяцПараметр,1),ПараметрДняНедели)","v":{"$error":"#NUM!"}},{"$error":"#NUM!"},"Заметки:"]
[]
[null,{"$f":"YEAR(DATE(Календарь10Год,Календарь10МесяцПараметр+1,1))","v":2019.0},{"$f":"TEXT(DATE(Календарь10Год,Календарь10МесяцПараметр+1,1),\"ММММ\")","v":"Октябрь"}]
[null,{"$f":"UPPER(TEXT(B143,\"ДДДД\"))","v":{"$error":"#NUM!"}},{"$error":"#NUM!"},{"$error":"#NUM!"},{"$error":"#NUM!"},{"$error":"#NUM!"},{"$error":"#NUM!"},{"$error":"#NUM!"}]
[null,{"$f":"Дни+1+DATE(Календарь11Год,Календарь11МесяцПараметр,1)-WEEKDAY(DATE(Календарь11Год,Календарь11МесяцПараметр,1),ПараметрДняНедели)","v":{"$error":"#NUM!"}},{"$error":"#NUM!"},{"$error":"#NUM!"},{"$error":"#NUM!"},{"$error":"#NUM!"},{"$error":"#NUM!"},{"$error":"#NUM!"}]
[]
[null,{"$f":"Дни+8+DATE(Календарь11Год,Календарь11МесяцПараметр,1)-WEEKDAY(DATE(Календарь11Год,Календарь11МесяцПараметр,1),ПараметрДняНедели)","v":{"$error":"#NUM!"}},{"$error":"#NUM!"},{"$error":"#NUM!"},{"$error":"#NUM!"},{"$error":"#NUM!"},{"$error":"#NUM!"},{"$error":"#NUM!"}]
[]
[null,{"$f":"Дни+15+DATE(Календарь11Год,Календарь11МесяцПараметр,1)-WEEKDAY(DATE(Календарь11Год,Календарь11МесяцПараметр,1),ПараметрДняНедели)","v":{"$error":"#NUM!"}},{"$error":"#NUM!"},{"$error":"#NUM!"},{"$error":"#NUM!"},{"$error":"#NUM!"},{"$error":"#NUM!"},{"$error":"#NUM!"}]
[]
[null,{"$f":"Дни+22+DATE(Календарь11Год,Календарь11МесяцПараметр,1)-WEEKDAY(DATE(Календарь11Год,Календарь11МесяцПараметр,1),ПараметрДняНедели)","v":{"$error":"#NUM!"}},{"$error":"#NUM!"},{"$error":"#NUM!"},{"$error":"#NUM!"},{"$error":"#NUM!"},{"$error":"#NUM!"},{"$error":"#NUM!"}]
[]
[null,{"$f":"Дни+29+DATE(Календарь11Год,Календарь11МесяцПараметр,1)-WEEKDAY(DATE(Календарь11Год,Календарь11МесяцПараметр,1),ПараметрДняНедели)","v":{"$error":"#NUM!"}},{"$error":"#NUM!"},{"$error":"#NUM!"},{"$error":"#NUM!"},{"$error":"#NUM!"},{"$error":"#NUM!"},{"$error":"#NUM!"}]
[]
[null,{"$f":"Дни+36+DATE(Календарь11Год,Календарь11МесяцПараметр,1)-WEEKDAY(DATE(Календарь11Год,Календарь11МесяцПараметр,1),ПараметрДняНедели)","v":{"$error":"#NUM!"}},{"$error":"#NUM!"},"Заметки:"]
[]
[null,{"$f":"YEAR(DATE(Календарь11Год,Календарь11МесяцПараметр+1,1))","v":2019.0},{"$f":"TEXT(DATE(Календарь11Год,Календарь11МесяцПараметр+1,1),\"ММММ\")","v":"Ноябрь"}]
[null,{"$f":"UPPER(TEXT(B157,\"ДДДД\"))","v":{"$error":"#NUM!"}},{"$error":"#NUM!"},{"$error":"#NUM!"},{"$error":"#NUM!"},{"$error":"#NUM!"},{"$error":"#NUM!"},{"$error":"#NUM!"}]
[null,{"$f":"Дни+1+DATE(Календарь12Год,Календарь12МесяцПараметр,1)-WEEKDAY(DATE(Календарь12Год,Календарь12МесяцПараметр,1),ПараметрДняНедели)","v":{"$error":"#NUM!"}},{"$error":"#NUM!"},{"$error":"#NUM!"},{"$error":"#NUM!"},{"$error":"#NUM!"},{"$error":"#NUM!"},{"$error":"#NUM!"}]
[]
[null,{"$f":"Дни+8+DATE(Календарь12Год,Календарь12МесяцПараметр,1)-WEEKDAY(DATE(Календарь12Год,Календарь12МесяцПараметр,1),ПараметрДняНедели)","v":{"$error":"#NUM!"}},{"$error":"#NUM!"},{"$error":"#NUM!"},{"$error":"#NUM!"},{"$error":"#NUM!"},{"$error":"#NUM!"},{"$error":"#NUM!"}]
[]
[null,{"$f":"Дни+15+DATE(Календарь12Год,Календарь12МесяцПараметр,1)-WEEKDAY(DATE(Календарь12Год,Календарь12МесяцПараметр,1),ПараметрДняНедели)","v":{"$error":"#NUM!"}},{"$error":"#NUM!"},{"$error":"#NUM!"},{"$error":"#NUM!"},{"$error":"#NUM!"},{"$error":"#NUM!"},{"$error":"#NUM!"}]
[]
[null,{"$f":"Дни+22+DATE(Календарь12Год,Календарь12МесяцПараметр,1)-WEEKDAY(DATE(Календарь12Год,Календарь12МесяцПараметр,1),ПараметрДняНедели)","v":{"$error":"#NUM!"}},{"$error":"#NUM!"},{"$error":"#NUM!"},{"$error":"#NUM!"},{"$error":"#NUM!"},{"$error":"#NUM!"},{"$error":"#NUM!"}]
[]
[null,{"$f":"Дни+29+DATE(Календарь12Год,Календарь12МесяцПараметр,1)-WEEKDAY(DATE(Календарь12Год,Календарь12МесяцПараметр,1),ПараметрДняНедели)","v":{"$error":"#NUM!"}},{"$error":"#NUM!"},{"$error":"#NUM!"},{"$error":"#NUM!"},{"$error":"#NUM!"},{"$error":"#NUM!"},{"$error":"#NUM!"}]
[]
[null,{"$f":"Дни+36+DATE(Календарь12Год,Календарь12МесяцПараметр,1)-WEEKDAY(DATE(Календарь12Год,Календарь12МесяцПараметр,1),ПараметрДняНедели)","v":{"$error":"#NUM!"}},{"$error":"#NUM!"},"Примечания."]